bitfinex-derivatives/quotes_SOLF0:USTF0_20250907
["timestamp","ask_amount","ask_price","bid_price","bid_amount"]
[1757240867402,13.28928616,203.14,203.1,7.41]
[1757240867602,13.28928616,203.14,203.09,87.8696267]
[1757240867997,13.28928616,203.14,203.1,7.41]
[1757240868203,13.28928616,203.14,203.09,87.8696267]
[1757240868403,13.28928616,203.14,203.1,7.41]
[1757240868898,5.51928616,203.14,203.1,7.41]
[1757240869100,5.51928616,203.13,203.09,87.8696267]
[1757240869300,5.51928616,203.13,203.08,8.17]
[1757240869500,5.51928616,203.12,203.08,8.17]
[1757240869705,7.77,203.11,203.08,8.17]
[1757240870700,7.77,203.11,203.07,119.1]
[1757240871104,7.77,203.11,203.09,8.17]
[1757240876303,13.28928616,203.11,203.09,8.17]
[1757240876500,13.28928616,203.11,203.0,8.17]
[1757240876699,13.28928616,203.11,203.02,8.17]
[1757240878102,5.51928616,203.1,203.02,8.17]
[1757240883409,7.77,203.09,203.03,8.17]
[1757240891212,13.28928616,203.09,203.03,8.17]
[1757240892819,5.51928616,203.09,203.0,8.17]
[1757240893021,7.77,203.08,203.0,8.17]
[1757240893522,13.28928616,203.08,203.0,8.17]
[1757240898227,7.77,203.08,203.0,8.17]
[1757240898428,13.28928616,203.08,203.0,8.17]
[1757240907830,13.28928616,203.08,202.99,119.1]
[1757240908036,5.51928616,203.09,203.01,8.13]
[1757240908335,5.51928616,203.1,203.01,12.5622]
[1757240908537,5.51928616,203.1,203.02,8.13]
[1757240908933,7.77,203.09,203.02,8.13]
[1757240909134,13.28928616,203.09,203.02,8.13]
[1757240910634,5.51928616,203.08,203.02,8.13]
[1757240911133,7.77,203.07,203.02,8.13]
[1757240911430,13.28928616,203.07,203.02,8.13]
[1757240913935,5.51928616,203.06,203.0,8.13]
[1757240914138,7.77,203.05,202.98,8.13]
[1757240922141,13.28928616,203.05,202.98,8.13]
[1757240927646,7.77,203.03,202.94,8.13]
[1757240927946,7.77,203.03,202.94,12.5638]
[1757240928146,7.77,203.03,202.95,8.13]
[1757240928348,13.28928616,203.03,202.95,8.13]
[1757240933452,7.77,203.01,202.95,8.13]
[1757240934549,13.28928616,203.01,202.95,8.13]
[1757240939857,7.77,203.01,202.95,8.13]
[1757240940458,5.51928616,203.02,202.95,8.13]
[1757240941352,13.28928616,203.02,202.95,8.13]
[1757240954668,7.77,203.02,202.95,8.13]
[1757240961776,13.28928616,203.02,202.95,8.13]
[1757240963178,7.77,203.02,202.95,8.13]
[1757240963376,13.28928616,203.02,202.95,8.13]
[1757240966785,7.77,203.02,202.95,8.13]
[1757240969284,13.28928616,203.02,202.95,8.13]
[1757240973088,13.28928616,203.02,202.96,8.14]
[1757240991800,13.28928616,203.02,202.96,12.5733]
[1757240992100,5.51928616,203.04,202.95,7.4]
[1757240992502,12.93928616,203.08,202.98,7.4]
[1757240993298,7.42,203.08,202.98,7.4]
[1757240993910,7.42,203.08,203.03,7.4]
[1757240994107,5.51928616,203.09,203.02,4.4321]
[1757240994712,7.42,203.09,203.03,7.4]
[1757240997013,7.42,203.09,203.03,11.8319]
[1757241000105,7.42,203.09,203.03,4.4319]
[1757241000310,7.42,203.09,203.05,7.4]
[1757241000817,7.42,203.09,203.04,4.4317]
[1757241001012,113.61138995,203.1,203.05,7.4]
[1757241001213,7.42,203.09,203.04,11.8317]
[1757241001413,113.61138995,203.1,203.04,4.4317]
[1757241001614,7.42,203.09,203.04,11.8317]
[1757241001812,113.61138995,203.1,203.04,4.4317]
[1757241002010,121.03138995,203.1,203.05,7.4]
[1757241002406,121.03138995,203.1,203.04,4.4317]
[1757241002611,113.61138995,203.1,203.04,4.4317]
[1757241003017,7.42,203.09,203.04,11.8317]
[1757241003218,113.61138995,203.1,203.04,4.4317]
[1757241003707,7.42,203.09,203.04,11.8317]
[1757241004116,121.03138995,203.1,203.05,7.4]
[1757241004416,121.03138995,203.1,203.06,11.78283672]
[1757241004417,7.42,203.09,203.06,11.78283672]
[1757241004613,5.51928616,203.15,203.08,7.4]
[1757241004917,5.51928616,203.15,203.09,4.38283672]
[1757241005116,7.42,203.14,203.02,7.4]
[1757241005317,7.42,203.14,203.01,68.9478]
[1757241005318,7.42,203.14,203.04,7.4]
[1757241005519,7.42,203.14,203.05,4.38058303]
[1757241005722,7.42,203.14,203.07,7.4]
[1757241006018,7.42,203.14,203.08,4.38058303]
[1757241006218,7.42,203.14,203.09,4.38058303]
[1757241006420,7.42,203.14,203.07,7.4]
[1757241006610,7.42,203.14,203.08,4.37838874]
[1757241006815,7.42,203.14,203.07,7.4]
[1757241007019,7.42,203.14,203.08,4.37839021]
[1757241007221,7.42,203.14,203.07,7.4]
[1757241007424,7.42,203.14,203.08,4.3783174]
[1757241007621,7.42,203.14,203.07,7.4]
[1757241007821,7.42,203.14,203.08,4.37731953]
[1757241008122,7.42,203.14,203.07,7.4]
[1757241008318,7.42,203.14,203.08,4.37802845]
[1757241008522,7.42,203.14,203.07,7.4]
[1757241008723,7.42,203.14,203.08,4.37708127]
[1757241009023,7.42,203.14,203.07,7.4]
[1757241009222,7.42,203.14,203.08,4.37708274]
[1757241009523,7.42,203.14,203.07,7.4]
[1757241009718,7.42,203.14,203.08,4.37686674]
[1757241010017,7.42,203.14,203.07,7.4]
[1757241010217,7.42,203.14,203.08,4.37687223]
[1757241010420,7.42,203.14,203.07,7.4]
[1757241010719,7.42,203.14,203.08,4.4309]
[1757241010925,7.42,203.16,203.1,7.4]
[1757241011626,12.93928616,203.16,203.06,11.8312]
[1757241011826,7.42,203.15,203.06,11.8312]
[1757241012120,5.51928616,203.16,203.06,11.8312]
[1757241012325,7.42,203.15,203.06,11.8312]
[1757241012525,5.51928616,203.16,203.06,11.8312]
[1757241013621,7.42,203.15,203.06,11.8312]
[1757241014026,5.51928616,203.16,203.06,11.8312]
[1757241014421,7.42,203.15,203.06,11.8312]
[1757241014927,5.51928616,203.16,203.06,11.8312]
[1757241015425,7.42,203.15,203.06,11.8312]
[1757241016121,5.51928616,203.16,203.06,11.8312]
[1757241016323,5.51928616,203.16,203.06,4.4312]
[1757241016526,7.42,203.15,203.07,7.4]
[1757241026541,7.77,203.13,203.07,7.4]
[1757241028641,7.77,203.13,203.03,38.86]
[1757241028945,5.51928616,203.15,203.05,8.18]
[1757241029241,5.51928616,203.15,203.07,8.18]
[1757241029442,5.51928616,203.15,203.06,4.37942467]
[1757241029443,5.51928616,203.15,203.09,8.18]
[1757241030445,13.28928616,203.16,203.1,4.37989419]
[1757241030645,13.28928616,203.16,203.09,8.18]
[1757241030845,13.28928616,203.16,203.1,4.37987038]
[1757241031047,13.28928616,203.16,203.09,8.18]
[1757241031246,7.76,203.14,203.11,8.18]
[1757241033348,13.27928616,203.14,203.08,8.18]
[1757241033551,7.76,203.12,203.09,12.56434073]
[1757241033746,7.76,203.12,203.09,8.18]
[1757241033947,7.76,203.12,203.07,8.18]
[1757241034147,7.76,203.12,203.06,4.4312]
[1757241034148,7.76,203.12,203.09,8.18]
[1757241034451,7.76,203.12,203.1,12.56435464]
[1757241034647,7.76,203.12,203.1,8.18]
[1757241036151,13.27928616,203.12,203.1,8.18]
[1757241036340,13.27928616,203.12,203.11,4.39042977]
[1757241036545,7.76,203.12,203.11,4.39042977]
[1757241037145,7.76,203.12,203.07,8.18]
[1757241037342,5.51928616,203.11,203.08,4.3936692]
[1757241037547,7.76,203.1,203.09,4.3936692]
[1757241043254,13.27928616,203.1,203.09,4.3936692]
[1757241047155,13.27928616,203.1,203.09,1.31486743]
[1757241047452,7.76,203.09,203.06,8.18]
[1757241048059,7.76,203.09,203.03,8.18]
[1757241052057,5.51928616,203.1,203.01,8.07]
[1757241052258,5.51928616,203.11,203.01,8.07]
[1757241052958,5.51928616,203.11,203.05,8.07]
[1757241060567,5.51928616,203.12,203.05,8.07]
[1757241063273,5.51928616,203.11,203.05,8.07]
[1757241068675,13.28928616,203.11,203.05,8.07]
[1757241073481,13.28928616,203.11,203.05,12.5015]
[1757241079185,5.51928616,203.11,203.05,12.5015]
[1757241079584,7.73,203.1,203.06,4.4312]
[1757241079782,7.73,203.11,203.07,7.6]
[1757241079985,5.51928616,203.12,203.07,7.6]
[1757241080688,7.73,203.11,203.07,7.6]
[1757241080888,5.51928616,203.12,203.07,7.6]
[1757241081286,5.51928616,203.11,203.07,7.6]
[1757241081491,5.51928616,203.11,203.06,7.6]
[1757241081690,5.51928616,203.12,203.06,7.6]
[1757241082290,5.51928616,203.13,203.06,7.6]
[1757241082486,5.51928616,203.13,203.07,4.431]
[1757241082683,13.24928616,203.13,203.08,7.6]
[1757241082886,5.51928616,203.13,203.07,4.431]
[1757241083293,13.24928616,203.13,203.08,7.6]
[1757241083496,7.73,203.12,203.09,7.6]
[1757241086797,5.51928616,203.13,203.09,7.6]
[1757241087093,13.24928616,203.12,203.09,7.6]
[1757241087393,13.24928616,203.12,203.05,12.0315]
[1757241087394,7.73,203.11,203.05,12.0315]
[1757241088397,7.73,203.11,203.06,7.6]
[1757241088700,13.24928616,203.12,203.06,7.6]
[1757241108515,13.24928616,203.12,203.06,12.0313]
[1757241110116,7.74,203.1,203.07,7.77]
[1757241110414,7.74,203.1,203.06,4.4313]
[1757241110618,7.74,203.1,203.07,7.77]
[1757241110910,7.74,203.1,203.06,4.4313]
[1757241111122,7.74,203.1,203.07,7.77]
[1757241111611,7.74,203.1,203.06,4.4313]
[1757241112215,7.74,203.1,203.07,7.77]
[1757241112417,7.74,203.1,203.06,4.4313]
[1757241112917,7.74,203.1,203.07,7.77]
[1757241113318,7.74,203.1,203.06,4.4313]
[1757241114221,7.74,203.1,203.07,7.77]
[1757241114722,7.74,203.1,203.08,7.77]
[1757241118522,13.25928616,203.11,203.08,7.77]
[1757241118725,13.25928616,203.11,203.07,4.4311]
[1757241118920,13.25928616,203.11,203.08,7.77]
[1757241119520,7.74,203.1,203.08,7.77]
[1757241123329,5.51928616,203.12,203.04,7.77]
[1757241123726,5.51928616,203.13,203.04,7.77]
[1757241123921,13.25928616,203.13,203.11,7.77]
[1757241125128,7.74,203.13,203.11,7.77]
[1757241132836,7.74,203.13,203.08,4.4308]
[1757241133331,7.74,203.13,203.09,7.77]
[1757241133835,5.51928616,203.15,203.07,7.77]
[1757241134035,7.74,203.15,203.07,7.77]
[1757241134835,5.51928616,203.16,203.1,4.4304]
[1757241135037,5.51928616,203.16,203.06,118.94]
[1757241135236,7.74,203.15,203.07,7.77]
[1757241135835,7.74,203.15,203.08,4.4308]
[1757241137038,7.74,203.15,203.09,7.77]
[1757241138939,7.74,203.15,203.09,12.2006]
[1757241146136,5.51928616,203.16,203.09,4.4306]
[1757241146541,7.78,203.15,203.1,7.46]
[1757241147035,5.51928616,203.16,203.09,4.4306]
[1757241147442,7.78,203.15,203.09,11.8906]
[1757241148643,7.78,203.15,203.09,4.4306]
[1757241148842,13.29928616,203.16,203.1,7.46]
[1757241154649,13.29928616,203.16,203.09,4.4306]
[1757241157649,13.29928616,203.16,203.1,7.46]
[1757241157842,7.78,203.16,203.1,11.8904]
[1757241158148,13.29928616,203.16,203.1,11.8904]
[1757241160551,13.29928616,203.16,203.1,7.46]
[1757241164357,13.28928616,203.15,203.09,11.8906]
[1757241166558,7.77,203.13,203.1,7.46]
[1757241166756,7.77,203.13,203.09,4.4306]
[1757241166957,7.77,203.13,203.1,7.46]
[1757241168059,7.77,203.13,203.09,4.4306]
[1757241168257,7.77,203.13,203.1,7.46]
[1757241168759,7.77,203.13,203.09,4.4306]
[1757241171853,7.77,203.13,203.1,8.19]
[1757241172860,7.77,203.13,203.09,4.4306]
[1757241173062,7.77,203.13,203.1,8.19]
[1757241173360,7.77,203.13,203.09,4.4306]
[1757241173553,7.77,203.13,203.1,8.19]
[1757241173752,7.77,203.13,203.09,4.4306]
[1757241174459,7.77,203.13,203.1,8.19]
[1757241174661,7.77,203.13,203.09,4.4306]
[1757241174962,7.77,203.13,203.1,8.19]
[1757241179661,7.77,203.13,203.09,4.4306]
[1757241179861,7.77,203.13,203.1,8.19]
[1757241185266,7.77,203.13,203.09,4.4306]
[1757241185667,7.77,203.13,203.1,8.19]
[1757241188267,7.77,203.13,203.09,4.4306]
[1757241188457,7.77,203.13,203.1,8.19]
[1757241188662,7.77,203.13,203.09,4.4306]
[1757241188863,7.77,203.13,203.1,8.19]
[1757241195075,7.77,203.13,203.09,4.4306]
[1757241195270,7.77,203.13,203.1,8.19]
[1757241196971,7.77,203.13,203.09,4.4306]
[1757241197167,7.77,203.13,203.1,8.19]
[1757241199874,7.77,203.13,203.09,4.4306]
[1757241200076,7.77,203.13,203.1,8.02]
[1757241201976,5.51928616,203.15,203.1,8.02]
[1757241202375,7.45,203.14,203.1,8.02]
[1757241202577,5.51928616,203.15,203.1,8.02]
[1757241202777,7.45,203.14,203.1,8.02]
[1757241203669,5.51928616,203.15,203.1,8.02]
[1757241204376,7.45,203.14,203.1,8.02]
[1757241204676,5.51928616,203.15,203.1,8.02]
[1757241205380,7.45,203.14,203.1,8.02]
[1757241205881,5.51928616,203.15,203.1,8.02]
[1757241206679,7.45,203.13,203.1,8.02]
[1757241206879,7.45,203.13,203.1,12.4504]
[1757241207074,7.45,203.13,203.11,8.02]
[1757241207577,7.45,203.13,203.11,126.9]
[1757241208578,5.51928616,203.14,203.12,8.02]
[1757241208773,12.96928616,203.14,203.12,8.02]
[1757241209680,7.45,203.13,203.12,8.02]
[1757241209978,7.45,203.13,203.11,126.9]
[1757241210782,7.45,203.13,203.12,8.02]
[1757241214684,5.51928616,203.14,203.12,8.02]
[1757241214883,5.51928616,203.14,203.11,118.88]
[1757241215384,5.51928616,203.14,203.12,8.02]
[1757241215882,12.96928616,203.14,203.12,8.02]
[1757241228097,7.45,203.13,203.11,118.88]
[1757241228289,7.45,203.13,203.12,118.86]
[1757241233399,7.45,203.13,203.12,126.85]
[1757241233599,13.29928616,203.14,203.12,126.85]
[1757241237901,5.51928616,203.14,203.13,7.99]
[1757241238091,5.51928616,203.14,203.13,4.91197313]
[1757241238803,5.51928616,203.16,203.13,9.44418642]
[1757241239000,5.51928616,203.16,203.14,123.39221329]
[1757241239200,5.51928616,203.16,203.15,4.53221329]
[1757241239400,13.70928616,203.17,203.15,4.53221329]
[1757241239601,13.70928616,203.17,203.16,4.53221329]
[1757241241893,5.51928616,203.17,203.16,12.52221329]
[1757241242298,13.70928616,203.18,203.16,12.52221329]
[1757241242498,13.70928616,203.18,203.17,4.53221329]
[1757241244200,13.70928616,203.18,203.17,4.52576387]
[1757241246507,8.19,203.18,203.17,4.52576387]
[1757241248107,8.19,203.18,203.17,4.5231619]
[1757241248309,13.72145565,203.18,203.17,4.5231619]
[1757241252113,13.72145565,203.18,203.17,4.52291686]
[1757241252715,5.53145565,203.19,203.18,7.99]
[1757241253011,5.53145565,203.19,203.18,12.51291686]
[1757241253614,118.8294628,203.2,203.19,7.99]
[1757241253814,118.8294628,203.2,203.19,12.51291686]
[1757241255414,127.0194628,203.2,203.19,4.52291686]
[1757241256415,13.72145565,203.2,203.19,4.52291686]
[1757241256615,8.19,203.2,203.19,4.52291686]
[1757241258014,8.19,203.2,203.19,12.51291686]
[1757241258217,8.19,203.2,203.19,7.99]
[1757241258818,16.47709062,203.22,203.19,12.50646734]
[1757241259017,16.47709062,203.22,203.19,7.99]
[1757241259818,8.21,203.21,203.19,7.99]
[1757241261221,5.52311682,203.2,203.19,7.99]
[1757241261422,5.52311682,203.2,203.19,12.50466094]
[1757241262321,5.52311682,203.2,203.19,7.99]
[1757241266523,5.52311682,203.21,203.19,7.99]
[1757241267323,13.73311682,203.21,203.19,7.99]
[1757241271228,8.21,203.21,203.19,7.99]
[1757241271432,13.73311682,203.21,203.19,7.99]
[1757241282840,13.73311682,203.21,203.2,4.51854425]
[1757241287142,13.73311682,203.21,203.19,7.99]
[1757241287444,13.73311682,203.21,203.2,4.5205149]
[1757241287640,13.73311682,203.21,203.19,7.99]
[1757241291943,5.52311682,203.21,203.16,123.2491]
[1757241292239,5.52311682,203.21,203.18,7.92]
[1757241292541,113.57877123,203.22,203.19,12.44329412]
[1757241292542,5.52311682,203.2,203.19,12.44329412]
[1757241296546,121.86586185,203.22,203.19,12.44329412]
[1757241296845,7.48,203.21,203.19,7.92]
[1757241297040,121.86586185,203.22,203.17,7.92]
[1757241297247,5.53322801,203.19,203.18,12.44372613]
[1757241305553,5.53322801,203.19,203.18,12.44177523]
[1757241306556,5.53322801,203.21,203.18,12.44177523]
[1757241306852,13.01322801,203.21,203.19,4.52177523]
[1757241307058,13.01322801,203.21,203.2,4.52177523]
[1757241309560,5.53322801,203.21,203.2,12.44177523]
[1757241310961,13.01322801,203.21,203.2,4.52177523]
[1757241320263,7.48,203.21,203.2,4.52177523]
[1757241321266,8.13,203.21,203.2,4.5287159]
[1757241322463,16.41709062,203.21,203.12,78.49713858]
[1757241322666,8.13,203.15,203.13,114.27094503]
[1757241322868,8.13,203.15,203.14,4.53094503]
[1757241325966,13.66706668,203.17,203.14,4.53094503]
[1757241326266,13.66706668,203.17,203.15,4.53094503]
[1757241326458,13.66706668,203.17,203.16,4.53094503]
[1757241327262,8.13,203.17,203.16,4.53094503]
[1757241332274,5.53706668,203.18,203.13,117.31]
[1757241332475,8.13,203.17,203.14,12.08924032]
[1757241332776,8.13,203.17,203.15,12.08924032]
[1757241332976,8.13,203.17,203.15,7.57]
[1757241337578,8.13,203.17,203.16,4.52284559]
[1757241341581,5.53706668,203.17,203.12,86.06713858]
[1757241341785,8.13,203.15,203.13,4.52367318]
[1757241341978,8.13,203.15,203.12,86.06713858]
[1757241341979,8.13,203.15,203.14,4.52367318]
[1757241344485,8.13,203.15,203.14,4.52211173]
[1757241346585,13.65360831,203.15,203.14,4.52211173]
[1757241352287,5.52360831,203.16,203.15,7.52]
[1757241352788,13.26360831,203.16,203.15,7.52]
[1757241353089,13.26360831,203.16,203.13,7.52]
[1757241353284,13.26360831,203.16,203.14,4.51686389]
[1757241353484,13.26360831,203.16,203.13,7.52]
[1757241353685,13.26360831,203.16,203.14,4.51703268]
[1757241353889,13.26360831,203.16,203.12,78.49713858]
[1757241354080,13.26360831,203.16,203.13,12.03703268]
[1757241354281,13.26360831,203.16,203.14,4.51703268]
[1757241354491,13.26360831,203.16,203.13,7.52]
[1757241354789,13.26360831,203.16,203.14,4.51721982]
[1757241354990,13.26360831,203.16,203.13,7.52]
[1757241355292,13.26360831,203.16,203.14,4.51721982]
[1757241355489,13.26360831,203.16,203.13,7.52]
[1757241355693,13.26360831,203.16,203.14,4.51745736]
[1757241355887,7.74,203.15,203.13,7.52]
[1757241356187,7.74,203.15,203.14,4.51745736]
[1757241361892,5.52360831,203.16,203.15,7.52]
[1757241362097,5.52360831,203.16,203.15,12.03745736]
[1757241364201,5.52360831,203.17,203.15,12.03745736]
[1757241364396,5.52360831,203.17,203.16,4.51745736]
[1757241365610,13.26360831,203.17,203.16,12.03745736]
[1757241366409,7.74,203.17,203.16,12.03745736]
[1757241366609,8.30560003,203.19,203.16,12.03745736]
[1757241366810,7.74,203.18,203.17,4.51745736]
[1757241367308,16.04560003,203.18,203.17,4.51745736]
[1757241368907,16.04560003,203.18,203.16,7.52]
[1757241369811,16.04560003,203.18,203.13,7.52]
[1757241370013,5.53198772,203.16,203.14,12.04747051]
[1757241370312,5.53198772,203.16,203.15,12.04747051]
[1757241382616,5.53198772,203.18,203.16,7.69]
[1757241382821,5.53198772,203.18,203.17,12.21747051]
[1757241386829,8.30560003,203.19,203.17,4.52747051]
[1757241387028,8.30560003,203.19,203.18,12.21482711]
[1757241387326,8.30560003,203.2,203.15,123.1894]
[1757241387519,5.53054941,203.17,203.16,12.21429012]
[1757241387920,5.53054941,203.18,203.17,12.119]
[1757241388121,5.53054941,203.19,203.17,16.64329012]
[1757241388323,5.53054941,203.19,203.18,12.21429012]
[1757241393737,5.53054941,203.19,203.18,12.20921768]
[1757241396838,119.250079,203.22,203.19,7.69]
[1757241396839,5.53054941,203.21,203.19,7.69]
[1757241397530,13.44054941,203.21,203.19,7.69]
[1757241397734,7.91,203.2,203.18,7.69]
[1757241397938,7.91,203.2,203.19,4.51514347]
[1757241400537,7.91,203.2,203.19,12.20514347]
[1757241402239,5.53054941,203.21,203.19,12.20514347]
[1757241402433,13.44054941,203.21,203.19,7.69]
[1757241408138,5.53054941,203.2,203.19,7.69]
[1757241408338,5.53054941,203.2,203.19,12.20534399]
[1757241417651,5.53054941,203.2,203.19,7.69]
[1757241423155,7.91,203.21,203.19,7.69]
[1757241427155,16.21560003,203.21,203.19,7.69]
[1757241427655,16.21560003,203.21,203.2,4.52789436]
[1757241436864,7.91,203.21,203.2,4.52789436]
[1757241445971,110.94447897,203.22,203.2,12.60789436]
[1757241446167,110.94447897,203.22,203.21,4.52789436]
[1757241446470,118.40447897,203.22,203.21,4.52789436]
[1757241467689,110.94447897,203.22,203.17,118.72]
[1757241467989,8.30827108,203.2,203.18,12.61524652]
[1757241468191,8.30827108,203.2,203.19,4.53524652]
[1757241470490,15.94827108,203.2,203.19,4.53524652]
[1757241473693,15.94827108,203.2,203.19,12.07524652]
[1757241473993,8.30827108,203.2,203.19,12.07524652]
[1757241476095,8.30827108,203.21,203.19,12.07524652]
[1757241476394,15.94827108,203.21,203.2,4.53524652]
[1757241476895,7.64,203.21,203.2,4.53524652]
[1757241485498,8.30605616,203.23,203.2,4.53524652]
[1757241485703,8.30605616,203.23,203.21,4.53524652]
[1757241485903,8.30605616,203.23,203.22,4.53524652]
[1757241486202,8.30605616,203.24,203.23,7.54]
[1757241486403,8.30605616,203.24,203.23,12.07524652]
[1757241486998,7.64,203.25,203.23,12.07524652]
[1757241487194,7.64,203.25,203.24,4.53524652]
[1757241488500,15.94605616,203.26,203.24,4.52381605]
[1757241488704,7.64,203.26,203.25,4.5234405]
[1757241489105,13.16612023,203.26,203.25,4.5234405]
[1757241491107,7.64,203.26,203.25,4.5234405]
[1757241495208,13.16612023,203.28,203.25,12.0634405]
[1757241495411,7.64,203.27,203.25,7.54]
[1757241495608,5.52612023,203.28,203.25,7.54]
[1757241496309,7.64,203.27,203.25,7.54]
[1757241497005,5.52612023,203.29,203.25,7.54]
[1757241497508,7.64,203.28,203.25,7.54]
[1757241497801,5.52612023,203.29,203.26,4.51210852]
[1757241498008,7.64,203.28,203.25,7.54]
[1757241498212,7.64,203.28,203.26,4.51210852]
[1757241498410,5.52612023,203.29,203.25,7.54]
[1757241498713,5.52612023,203.29,203.26,4.51147917]
[1757241499010,5.52612023,203.29,203.25,7.54]
[1757241499205,7.71,203.28,203.25,7.54]
[1757241499808,5.52612023,203.29,203.25,7.54]
[1757241500110,7.71,203.28,203.25,7.54]
[1757241500310,5.52612023,203.29,203.25,7.54]
[1757241501112,7.71,203.28,203.25,7.54]
[1757241501312,5.52612023,203.29,203.25,7.54]
[1757241501713,7.71,203.28,203.25,7.54]
[1757241501908,5.52612023,203.29,203.25,7.54]
[1757241502211,124.20612023,203.3,203.25,7.54]
[1757241502411,7.71,203.29,203.25,7.54]
[1757241502812,124.20612023,203.3,203.25,7.54]
[1757241503805,7.71,203.29,203.25,7.54]
[1757241504010,124.20612023,203.3,203.25,7.54]
[1757241504413,7.71,203.29,203.25,7.54]
[1757241505511,124.20612023,203.3,203.25,7.54]
[1757241506010,7.71,203.29,203.25,7.54]
[1757241506315,124.20612023,203.3,203.25,7.54]
[1757241506515,7.71,203.29,203.25,7.54]
[1757241507016,7.71,203.28,203.25,7.54]
[1757241507915,5.52612023,203.29,203.25,7.54]
[1757241508310,7.71,203.28,203.25,7.54]
[1757241508714,5.52612023,203.29,203.25,7.54]
[1757241509010,7.71,203.28,203.25,7.54]
[1757241509716,5.52612023,203.29,203.25,7.54]
[1757241509916,7.71,203.28,203.25,7.54]
[1757241510119,7.71,203.28,203.23,4.4276]
[1757241510613,13.23612023,203.29,203.24,8.03]
[1757241510818,5.52612023,203.29,203.23,4.4276]
[1757241511019,13.23612023,203.29,203.24,8.03]
[1757241511216,13.23612023,203.29,203.2,8.03]
[1757241511516,5.52612023,203.26,203.2,8.03]
[1757241511713,5.52612023,203.25,203.2,8.03]
[1757241511917,5.52612023,203.25,203.15,12.26]
[1757241511918,13.23612023,203.25,203.16,8.03]
[1757241512119,13.23612023,203.25,203.18,8.03]
[1757241512318,5.52612023,203.25,203.19,4.51208046]
[1757241512519,13.23612023,203.25,203.16,8.03]
[1757241512721,13.23612023,203.25,203.18,8.03]
[1757241513014,5.52612023,203.25,203.21,8.03]
[1757241513214,5.52612023,203.25,203.18,8.03]
[1757241513215,7.71,203.24,203.18,8.03]
[1757241513417,7.71,203.24,203.19,4.51275754]
[1757241513623,7.71,203.24,203.17,8.03]
[1757241513826,7.71,203.24,203.18,4.51275279]
[1757241514017,7.71,203.24,203.19,12.54275279]
[1757241514323,5.52612023,203.25,203.19,8.03]
[1757241515014,7.71,203.24,203.19,8.03]
[1757241515218,7.71,203.24,203.15,8.03]
[1757241515423,7.71,203.24,203.17,8.03]
[1757241515617,5.52612023,203.25,203.18,4.5167088]
[1757241515818,13.23612023,203.25,203.2,8.03]
[1757241516024,13.23612023,203.25,203.18,8.03]
[1757241516219,13.23612023,203.25,203.17,4.4289]
[1757241516220,13.23612023,203.25,203.19,4.51671226]
[1757241516429,13.23612023,203.25,203.18,8.03]
[1757241516629,13.23612023,203.25,203.19,12.54709476]
[1757241516930,13.23612023,203.25,203.19,8.03]
[1757241517824,7.71,203.24,203.2,12.54766103]
[1757241518022,5.52612023,203.25,203.21,4.51766103]
[1757241518219,7.71,203.24,203.22,4.51766103]
[1757241518430,5.52612023,203.25,203.2,8.03]
[1757241518629,7.71,203.24,203.21,4.51824334]
[1757241518829,7.71,203.24,203.22,4.51824334]
[1757241519032,7.71,203.24,203.2,8.03]